[Event "Titled Tuesday Blitz February 21 Early 2023"]
[White "Tarnowska, Aleksandra"]
[Black "Buscar, Michael"]
[WhiteFideId "1180967"]
[BlackFideId "2603616"]
[WhiteElo "1835"]
[BlackElo "2041"]
[Result "0-1"]
[Round "11"]
[TimeControl "180+2"]
[Date "2023.02.21"]
[WhiteClock "0:00:01"]
[BlackClock "0:01:11"]

1. e4 {[%clk 0:03:00]}  c5 {[%clk 0:02:59]} 2. Nf3 {[%clk 0:03:00]}  Nc6 {[%clk 0:03:00]} 3. Bb5 {[%clk 0:03:00]}  Nf6 {[%clk 0:03:00]} 4. e5 {[%clk 0:02:56]}  Nd5 {[%clk 0:03:00]} 5. O-O {[%clk 0:02:52]}  g6 {[%clk 0:02:59]} 6. Bc4 {[%clk 0:02:47]}  Nc7 {[%clk 0:02:59]} 7. c3 {[%clk 0:02:11]}  Bg7 {[%clk 0:02:56]} 8. d4 {[%clk 0:01:51]}  cxd4 {[%clk 0:02:55]} 9. cxd4 {[%clk 0:01:52]}  d5 {[%clk 0:02:55]} 10. exd6 {[%clk 0:01:48]}  Qxd6 {[%clk 0:02:54]} 11. Nc3 {[%clk 0:01:45]}  Bg4 {[%clk 0:02:53]} 12. Ne4 {[%clk 0:01:42]}  Qb4 {[%clk 0:02:46]} 13. Bxf7+ {[%clk 0:01:38]}  Kxf7 {[%clk 0:02:39]} 14. Nfg5+ {[%clk 0:01:38]}  Kg8 {[%clk 0:02:38]} 15. Qxg4 {[%clk 0:01:35]}  Qxd4 {[%clk 0:02:38]} 16. Ne6 {[%clk 0:00:50]}  Qe5 {[%clk 0:02:14]} 17. Nxc7 {[%clk 0:00:47]}  Qxc7 {[%clk 0:02:13]} 18. Qe6+ {[%clk 0:00:48]}  Kf8 {[%clk 0:02:12]} 19. Ng5 {[%clk 0:00:44]}  Nd8 {[%clk 0:02:12]} 20. Qe4 {[%clk 0:00:34]}  Qe5 {[%clk 0:02:11]} 21. Qf3+ {[%clk 0:00:26]}  Qf6 {[%clk 0:02:10]} 22. Qb3 {[%clk 0:00:20]}  h6 {[%clk 0:02:07]} 23. Nf3 {[%clk 0:00:15]}  Qe6 {[%clk 0:02:04]} 24. Qa4 {[%clk 0:00:12]}  Kg8 {[%clk 0:02:05]} 25. Bf4 {[%clk 0:00:10]}  Kh7 {[%clk 0:02:04]} 26. Rae1 {[%clk 0:00:10]}  Qc6 {[%clk 0:02:05]} 27. Qb3 {[%clk 0:00:08]}  Rf8 {[%clk 0:02:00]} 28. Bg3 {[%clk 0:00:06]}  Qf6 {[%clk 0:01:57]} 29. Be5 {[%clk 0:00:06]}  Qf7 {[%clk 0:01:52]} 30. Bxg7 {[%clk 0:00:06]}  Qxg7 {[%clk 0:01:48]} 31. Ne5 {[%clk 0:00:05]}  Rc8 {[%clk 0:01:43]} 32. Nd7 {[%clk 0:00:05]}  Rf5 {[%clk 0:01:39]} 33. Qe3 {[%clk 0:00:03]}  Nc6 {[%clk 0:01:38]} 34. g3 {[%clk 0:00:02]}  Qxb2 {[%clk 0:01:38]} 35. Qe6 {[%clk 0:00:01]}  Rd8 {[%clk 0:01:23]} 36. Rc1 {[%clk 0:00:01]}  Qg7 {[%clk 0:01:11]} 0-1


[Site "https://www.chess.com"]

[Event "Titled Tuesday Blitz February 21 Early 2023"]
[White "Thomas, Anysia"]
[Black "Seifert, Henryk"]
[WhiteFideId "670472"]
[BlackFideId "1100963"]
[WhiteElo "2147"]
[BlackElo "2106"]
[Result "1-0"]
[Round "11"]
[TimeControl "180+2"]
[Date "2023.02.21"]
[WhiteClock "0:00:03"]
[BlackClock "0:00:02"]

1. d4 {[%clk 0:02:59]}  d5 {[%clk 0:02:58]} 2. c4 {[%clk 0:02:59]}  c6 {[%clk 0:02:58]} 3. Nf3 {[%clk 0:02:59]}  e6 {[%clk 0:02:58]} 4. e3 {[%clk 0:03:00]}  Nf6 {[%clk 0:02:56]} 5. Qc2 {[%clk 0:02:56]}  Be7 {[%clk 0:02:53]} 6. b3 {[%clk 0:02:56]}  b6 {[%clk 0:02:52]} 7. Bb2 {[%clk 0:02:56]}  Bb7 {[%clk 0:02:53]} 8. Be2 {[%clk 0:02:55]}  Nbd7 {[%clk 0:02:53]} 9. O-O {[%clk 0:02:56]}  Rc8 {[%clk 0:02:52]} 10. Nc3 {[%clk 0:02:55]}  O-O {[%clk 0:02:44]} 11. e4 {[%clk 0:02:54]}  dxe4 {[%clk 0:02:41]} 12. Nxe4 {[%clk 0:02:55]}  Nxe4 {[%clk 0:02:32]} 13. Qxe4 {[%clk 0:02:55]}  Nf6 {[%clk 0:02:31]} 14. Qc2 {[%clk 0:02:53]}  c5 {[%clk 0:02:28]} 15. Rad1 {[%clk 0:02:50]}  Qc7 {[%clk 0:02:20]} 16. dxc5 {[%clk 0:02:32]}  bxc5 {[%clk 0:02:10]} 17. Be5 {[%clk 0:02:29]}  Qc6 {[%clk 0:02:02]} 18. Rfe1 {[%clk 0:02:12]}  Rfd8 {[%clk 0:01:46]} 19. Bd3 {[%clk 0:02:09]}  h6 {[%clk 0:01:36]} 20. Qe2 {[%clk 0:01:39]}  Rd7 {[%clk 0:01:27]} 21. Bc2 {[%clk 0:01:15]}  Rcd8 {[%clk 0:01:22]} 22. h3 {[%clk 0:01:13]}  a5 {[%clk 0:01:20]} 23. Rxd7 {[%clk 0:01:10]}  Rxd7 {[%clk 0:01:18]} 24. Rd1 {[%clk 0:01:10]}  Rxd1+ {[%clk 0:01:07]} 25. Qxd1 {[%clk 0:01:11]}  Qd7 {[%clk 0:01:01]} 26. Qe2 {[%clk 0:01:03]}  Bd8 {[%clk 0:00:48]} 27. Bc3 {[%clk 0:01:00]}  Bc7 {[%clk 0:00:39]} 28. Ne5 {[%clk 0:00:51]}  Bxe5 {[%clk 0:00:32]} 29. Bxe5 {[%clk 0:00:42]}  Qc6 {[%clk 0:00:30]} 30. f3 {[%clk 0:00:40]}  Nd7 {[%clk 0:00:28]} 31. Bc3 {[%clk 0:00:39]}  Qd6 {[%clk 0:00:23]} 32. Bxa5 {[%clk 0:00:28]}  Qd4+ {[%clk 0:00:23]} 33. Qf2 {[%clk 0:00:22]}  Qa1+ {[%clk 0:00:21]} 34. Kh2 {[%clk 0:00:18]}  g6 {[%clk 0:00:19]} 35. Bd3 {[%clk 0:00:12]}  Qd1 {[%clk 0:00:17]} 36. Bd2 {[%clk 0:00:11]}  Ne5 {[%clk 0:00:15]} 37. Be4 {[%clk 0:00:10]}  Bxe4 {[%clk 0:00:13]} 38. fxe4 {[%clk 0:00:11]}  Kg7 {[%clk 0:00:12]} 39. Bc3 {[%clk 0:00:10]}  Qd6 {[%clk 0:00:08]} 40. Qg3 {[%clk 0:00:09]}  f6 {[%clk 0:00:07]} 41. Bxe5 {[%clk 0:00:09]}  fxe5 {[%clk 0:00:07]} 42. a4 {[%clk 0:00:08]}  Qd4 {[%clk 0:00:06]} 43. Qf3 {[%clk 0:00:09]}  g5 {[%clk 0:00:05]} 44. a5 {[%clk 0:00:09]}  Qa1 {[%clk 0:00:05]} 45. Qe3 {[%clk 0:00:06]}  Qxa5 {[%clk 0:00:04]} 46. Qd3 {[%clk 0:00:06]}  Qc7 {[%clk 0:00:04]} 47. Qc3 {[%clk 0:00:05]}  Kf6 {[%clk 0:00:04]} 48. b4 {[%clk 0:00:06]}  cxb4 {[%clk 0:00:03]} 49. Qxb4 {[%clk 0:00:07]}  Qc6 {[%clk 0:00:03]} 50. Qf8+ {[%clk 0:00:06]}  Kg6 {[%clk 0:00:02]} 51. Qg8+ {[%clk 0:00:06]}  Kf6 {[%clk 0:00:03]} 52. Qh8+ {[%clk 0:00:06]}  Kg6 {[%clk 0:00:03]} 53. Qg8+ {[%clk 0:00:05]}  Kf6 {[%clk 0:00:03]} 54. Qd8+ {[%clk 0:00:06]}  Kg6 {[%clk 0:00:03]} 55. Qd3 {[%clk 0:00:06]}  Qc5 {[%clk 0:00:02]} 56. Kg3 {[%clk 0:00:03]}  h5 {[%clk 0:00:02]} 57. Kf3 {[%clk 0:00:03]} 1-0


[Site "https://www.chess.com"]

[Event "Titled Tuesday Blitz February 21 Early 2023"]
[White "Desideri, Ricardo Maruchi"]
[Black "Winkels, Marcel"]
[WhiteFideId "2110440"]
[BlackFideId "1003887"]
[WhiteElo "1959"]
[BlackElo "1960"]
[Result "1-0"]
[Round "11"]
[TimeControl "180+2"]
[Date "2023.02.21"]
[WhiteClock "0:00:47"]
[BlackClock "0:00:02"]

1. e4 {[%clk 0:02:48]}  c5 {[%clk 0:02:57]} 2. Nf3 {[%clk 0:02:47]}  d6 {[%clk 0:02:58]} 3. d4 {[%clk 0:02:47]}  cxd4 {[%clk 0:02:57]} 4. Nxd4 {[%clk 0:02:48]}  Nf6 {[%clk 0:02:57]} 5. Nc3 {[%clk 0:02:48]}  a6 {[%clk 0:02:57]} 6. Rg1 {[%clk 0:02:48]}  h5 {[%clk 0:02:55]} 7. h3 {[%clk 0:02:46]}  h4 {[%clk 0:02:54]} 8. f4 {[%clk 0:02:37]}  Nbd7 {[%clk 0:02:52]} 9. Be3 {[%clk 0:02:37]}  g6 {[%clk 0:02:47]} 10. Qd2 {[%clk 0:02:35]}  b5 {[%clk 0:02:43]} 11. a3 {[%clk 0:02:33]}  Bb7 {[%clk 0:02:40]} 12. Bd3 {[%clk 0:02:34]}  Bg7 {[%clk 0:02:34]} 13. O-O-O {[%clk 0:02:32]}  O-O {[%clk 0:02:22]} 14. Qf2 {[%clk 0:02:33]}  e5 {[%clk 0:02:18]} 15. Nde2 {[%clk 0:02:25]}  Nh5 {[%clk 0:01:37]} 16. f5 {[%clk 0:02:21]}  Rc8 {[%clk 0:01:21]} 17. Rdf1 {[%clk 0:02:14]}  d5 {[%clk 0:01:08]} 18. exd5 {[%clk 0:02:03]}  e4 {[%clk 0:00:36]} 19. Bxe4 {[%clk 0:02:02]}  Ndf6 {[%clk 0:00:34]} 20. Bf3 {[%clk 0:01:30]}  Nxd5 {[%clk 0:00:29]} 21. Rd1 {[%clk 0:01:10]}  Qf6 {[%clk 0:00:13]} 22. Bd4 {[%clk 0:01:04]}  Qd6 {[%clk 0:00:08]} 23. Nxd5 {[%clk 0:01:00]}  Bxd5 {[%clk 0:00:07]} 24. Bxg7 {[%clk 0:01:00]}  Kxg7 {[%clk 0:00:04]} 25. Rxd5 {[%clk 0:00:59]}  Qc6 {[%clk 0:00:03]} 26. Qd4+ {[%clk 0:00:58]}  Nf6 {[%clk 0:00:02]} 27. c3 {[%clk 0:00:47]} 1-0


[Site "https://www.chess.com"]

[Event "Titled Tuesday Blitz February 21 Early 2023"]
[White "Clawitter, Craig"]
[Black "Jesusesmifuerza"]
[WhiteFideId "2023105"]
[WhiteElo "2050"]
[BlackElo "2002"]
[Result "1-0"]
[Round "11"]
[TimeControl "180+2"]
[Date "2023.02.21"]
[WhiteClock "0:00:09"]
[BlackClock "0:00:05"]

1. e4 {[%clk 0:03:00]}  c5 {[%clk 0:03:00]} 2. Nf3 {[%clk 0:03:00]}  e6 {[%clk 0:03:00]} 3. d4 {[%clk 0:03:01]}  cxd4 {[%clk 0:03:01]} 4. Nxd4 {[%clk 0:03:01]}  Nf6 {[%clk 0:03:01]} 5. Nc3 {[%clk 0:03:01]}  Nc6 {[%clk 0:03:01]} 6. Ndb5 {[%clk 0:03:01]}  Bc5 {[%clk 0:03:01]} 7. Bf4 {[%clk 0:02:59]}  O-O {[%clk 0:02:59]} 8. Bc7 {[%clk 0:02:58]}  Qe7 {[%clk 0:02:55]} 9. Bd6 {[%clk 0:02:59]}  Bxd6 {[%clk 0:02:50]} 10. Qxd6 {[%clk 0:02:59]}  Qd8 {[%clk 0:02:48]} 11. O-O-O {[%clk 0:02:47]}  a6 {[%clk 0:02:48]} 12. Nd4 {[%clk 0:02:29]}  Qb6 {[%clk 0:02:29]} 13. Nxc6 {[%clk 0:02:04]}  Qxc6 {[%clk 0:02:29]} 14. f3 {[%clk 0:01:55]}  b5 {[%clk 0:02:10]} 15. Qxc6 {[%clk 0:01:42]}  dxc6 {[%clk 0:02:10]} 16. Rd6 {[%clk 0:01:33]}  Bb7 {[%clk 0:02:09]} 17. Be2 {[%clk 0:01:27]}  Rfd8 {[%clk 0:02:08]} 18. Rhd1 {[%clk 0:01:26]}  Rxd6 {[%clk 0:02:08]} 19. Rxd6 {[%clk 0:01:26]}  Kf8 {[%clk 0:02:08]} 20. e5 {[%clk 0:01:22]}  Nd5 {[%clk 0:02:07]} 21. Ne4 {[%clk 0:01:08]}  Ke7 {[%clk 0:01:35]} 22. Nc5 {[%clk 0:01:02]}  Bc8 {[%clk 0:01:08]} 23. Rxc6 {[%clk 0:00:55]}  Nf4 {[%clk 0:00:56]} 24. Bf1 {[%clk 0:00:49]}  Ng6 {[%clk 0:00:56]} 25. Rc7+ {[%clk 0:00:31]}  Ke8 {[%clk 0:00:54]} 26. Nd3 {[%clk 0:00:27]}  Ne7 {[%clk 0:00:49]} 27. f4 {[%clk 0:00:15]}  Nd5 {[%clk 0:00:48]} 28. Rc5 {[%clk 0:00:15]}  Bb7 {[%clk 0:00:44]} 29. g3 {[%clk 0:00:15]}  Ne3 {[%clk 0:00:29]} 30. Bh3 {[%clk 0:00:13]}  Rc8 {[%clk 0:00:23]} 31. Rxc8+ {[%clk 0:00:13]}  Bxc8 {[%clk 0:00:24]} 32. b3 {[%clk 0:00:13]}  Bb7 {[%clk 0:00:24]} 33. Kd2 {[%clk 0:00:13]}  Nd5 {[%clk 0:00:23]} 34. Bg2 {[%clk 0:00:13]}  Bc8 {[%clk 0:00:16]} 35. c4 {[%clk 0:00:13]}  bxc4 {[%clk 0:00:15]} 36. bxc4 {[%clk 0:00:13]}  Nb6 {[%clk 0:00:15]} 37. Kc3 {[%clk 0:00:13]}  Kd7 {[%clk 0:00:12]} 38. Kb4 {[%clk 0:00:13]}  Kc7 {[%clk 0:00:12]} 39. a4 {[%clk 0:00:12]}  Nd7 {[%clk 0:00:07]} 40. a5 {[%clk 0:00:12]}  Nb8 {[%clk 0:00:06]} 41. Nc5 {[%clk 0:00:12]}  Nc6+ {[%clk 0:00:05]} 42. Bxc6 {[%clk 0:00:11]}  Kxc6 {[%clk 0:00:06]} 43. Nb3 {[%clk 0:00:11]}  g6 {[%clk 0:00:06]} 44. Nd4+ {[%clk 0:00:11]}  Kc7 {[%clk 0:00:06]} 45. Kc5 {[%clk 0:00:11]}  Bd7 {[%clk 0:00:06]} 46. Nb3 {[%clk 0:00:09]}  Ba4 {[%clk 0:00:06]} 47. Nd2 {[%clk 0:00:09]}  Bc2 {[%clk 0:00:06]} 48. Nf3 {[%clk 0:00:07]}  Be4 {[%clk 0:00:05]} 49. Ng5 {[%clk 0:00:07]}  Kd7 {[%clk 0:00:01]} 50. Nxe4 {[%clk 0:00:06]}  Ke7 {[%clk 0:00:02]} 51. Nd6 {[%clk 0:00:07]}  Kd7 {[%clk 0:00:03]} 52. Nc8 {[%clk 0:00:07]}  Kxc8 {[%clk 0:00:03]} 53. Kb6 {[%clk 0:00:08]}  Kb8 {[%clk 0:00:03]} 54. Kxa6 {[%clk 0:00:08]}  Ka8 {[%clk 0:00:03]} 55. Kb6 {[%clk 0:00:09]}  Kb8 {[%clk 0:00:04]} 56. Kc6 {[%clk 0:00:09]}  Kc8 {[%clk 0:00:04]} 57. Kd6 {[%clk 0:00:10]}  Kb7 {[%clk 0:00:04]} 58. c5 {[%clk 0:00:10]}  Kc8 {[%clk 0:00:04]} 59. c6 {[%clk 0:00:10]}  Kb8 {[%clk 0:00:04]} 60. a6 {[%clk 0:00:10]}  Kc8 {[%clk 0:00:04]} 61. c7 {[%clk 0:00:10]}  f6 {[%clk 0:00:03]} 62. exf6 {[%clk 0:00:09]}  g5 {[%clk 0:00:04]} 63. f7 {[%clk 0:00:09]}  h5 {[%clk 0:00:05]} 64. f8=Q# {[%clk 0:00:09]} 1-0


[Site "https://www.chess.com"]

[Event "Titled Tuesday Blitz February 21 Early 2023"]
[White "Vargas, Mauricio"]
[Black "Bongo Akanga Ndjila, Barthelemy"]
[WhiteFideId "4404572"]
[BlackFideId "10609431"]
[WhiteElo "2035"]
[BlackElo "1824"]
[Result "0-1"]
[Round "11"]
[TimeControl "180+2"]
[Date "2023.02.21"]
[WhiteClock "0:00:12"]
[BlackClock "0:01:45"]

1. e4 {[%clk 0:03:00]}  e5 {[%clk 0:02:59]} 2. Nf3 {[%clk 0:02:59]}  Nc6 {[%clk 0:02:59]} 3. Bc4 {[%clk 0:02:59]}  Nf6 {[%clk 0:02:58]} 4. O-O {[%clk 0:02:52]}  Bc5 {[%clk 0:02:57]} 5. d4 {[%clk 0:02:51]}  Bxd4 {[%clk 0:02:51]} 6. Nxd4 {[%clk 0:02:51]}  Nxd4 {[%clk 0:02:49]} 7. Bg5 {[%clk 0:02:48]}  h6 {[%clk 0:02:49]} 8. Bh4 {[%clk 0:02:43]}  g5 {[%clk 0:02:48]} 9. Bg3 {[%clk 0:02:42]}  d6 {[%clk 0:02:48]} 10. Re1 {[%clk 0:02:04]}  O-O {[%clk 0:02:46]} 11. h4 {[%clk 0:02:02]}  Bg4 {[%clk 0:02:44]} 12. f3 {[%clk 0:02:00]}  Be6 {[%clk 0:02:43]} 13. hxg5 {[%clk 0:01:59]}  hxg5 {[%clk 0:02:42]} 14. Qd2 {[%clk 0:01:50]}  Nh5 {[%clk 0:02:39]} 15. Bf2 {[%clk 0:01:47]}  Bxc4 {[%clk 0:02:38]} 16. Bxd4 {[%clk 0:01:39]}  exd4 {[%clk 0:02:37]} 17. Qxd4 {[%clk 0:01:39]}  Be6 {[%clk 0:02:36]} 18. Nc3 {[%clk 0:01:08]}  Qf6 {[%clk 0:02:35]} 19. Qb4 {[%clk 0:00:52]}  b6 {[%clk 0:02:25]} 20. Rad1 {[%clk 0:00:48]}  a5 {[%clk 0:02:24]} 21. Qb5 {[%clk 0:00:40]}  Nf4 {[%clk 0:02:23]} 22. g3 {[%clk 0:00:31]}  Nh3+ {[%clk 0:02:19]} 23. Kg2 {[%clk 0:00:30]}  g4 {[%clk 0:02:19]} 24. f4 {[%clk 0:00:25]}  Kg7 {[%clk 0:02:12]} 25. Nd5 {[%clk 0:00:23]}  Bxd5 {[%clk 0:02:04]} 26. Rxd5 {[%clk 0:00:22]}  a4 {[%clk 0:01:59]} 27. e5 {[%clk 0:00:21]}  dxe5 {[%clk 0:01:56]} 28. Rexe5 {[%clk 0:00:20]}  Ra5 {[%clk 0:01:52]} 29. Rg5+ {[%clk 0:00:12]}  Nxg5 {[%clk 0:01:45]} 30. Rxg5+ {[%clk 0:00:12]}  Qxg5 {[%clk 0:01:45]} 0-1


[Site "https://www.chess.com"]

[Event "Titled Tuesday Blitz February 21 Early 2023"]
[White "Mitrovic, Darko R"]
[Black "Zhao, Harry"]
[WhiteFideId "927023"]
[BlackFideId "2620413"]
[WhiteElo "2220"]
[BlackElo "1981"]
[Result "1-0"]
[Round "11"]
[TimeControl "180+2"]
[Date "2023.02.21"]
[WhiteClock "0:02:37"]
[BlackClock "0:02:39"]

1. d4 {[%clk 0:03:00]}  e6 {[%clk 0:02:55]} 2. Nf3 {[%clk 0:03:00]}  d5 {[%clk 0:02:55]} 3. g3 {[%clk 0:03:00]}  Nf6 {[%clk 0:02:55]} 4. Bg2 {[%clk 0:03:01]}  Bd6 {[%clk 0:02:55]} 5. O-O {[%clk 0:03:01]}  O-O {[%clk 0:02:56]} 6. c4 {[%clk 0:03:01]}  c6 {[%clk 0:02:56]} 7. Nbd2 {[%clk 0:03:02]}  Nbd7 {[%clk 0:02:57]} 8. Qc2 {[%clk 0:03:02]}  b6 {[%clk 0:02:56]} 9. e4 {[%clk 0:03:02]}  dxe4 {[%clk 0:02:55]} 10. Nxe4 {[%clk 0:03:03]}  Nxe4 {[%clk 0:02:56]} 11. Qxe4 {[%clk 0:03:04]}  Bb7 {[%clk 0:02:56]} 12. Qe2 {[%clk 0:03:04]}  c5 {[%clk 0:02:54]} 13. Be3 {[%clk 0:03:04]}  cxd4 {[%clk 0:02:53]} 14. Nxd4 {[%clk 0:02:57]}  Bxg2 {[%clk 0:02:53]} 15. Kxg2 {[%clk 0:02:58]}  Rc8 {[%clk 0:02:51]} 16. Rad1 {[%clk 0:02:55]}  Qe7 {[%clk 0:02:49]} 17. b3 {[%clk 0:02:52]}  Ne5 {[%clk 0:02:45]} 18. Bf4 {[%clk 0:02:41]}  Rfd8 {[%clk 0:02:39]} 19. Bxe5 {[%clk 0:02:37]} 1-0